Cogmind - Beta 9.3 *** ADVENTURER MODE // 2019.12.31 @ 12:35:12 // Winter2019/RPGLIKE Player: Zntyl Result: Destroyed by 34-NVZ(g) with Particle Gun Performance ------------- Evolutions (5) 2500 Regions Visited (23) 4600 Robots Destroyed (236) 1180 Value Destroyed (11690) 11690 Prototype IDs (239) 4780 Alien Tech Used (1) 200 Bonus (9085) 9085 TOTAL SCORE: 34035 Bonus ------- High Alert Combat Kills 1643 Follower Combat Kills 1080 Entered Garrisons 800 Used RIF Installer 2000 Aligned with FarCom 300 Met Data Miner 300 Used Data Conduit 3000 Pursued by Intercept 500 Friendly Fire -538 Cogmind --------- Core Integrity 0/2450 Matter 151/300 Energy 602/630 System Corruption 0% Temperature Cool (9) Movement Hovering (72) Location -5/Warlord Parts ------- > --- POWER (3) -------- Fission Core Light Antimatter Reactor > --- PROPULSION (3) --- Combat Airjet Combat Airjet Combat Airjet > --- UTILITY (7) ------ Triangulator Advanced Terrain Scanner Advanced Terrain Scan Processor Thermal Shield EM Shield > --- WEAPON (4) ------- Phase Cannon Slug Cannon Remote Datajack > --- INVENTORY (4) ---- Fission Core Falx Peak State ------------ > --- POWER ------------ Antimatter Reactor Light Antimatter Reactor Light Antimatter Reactor > --- PROPULSION ------- Combat Airjet Combat Airjet Combat Airjet > --- UTILITY ---------- System Shield System Shield System Shield Relay Coupler [Swarmer] Relay Coupler [Grunt] Relay Coupler [Sentry] Relay Coupler [Sentry] > --- WEAPON ----------- Neutron Cannon Linked Autogun Remote Datajack > --- INVENTORY -------- Improved Particle Charger Falx [Rating: 86] Favorites ----------- Power Light Antimatter Reactor Engine Improved Deuterium Engine Power Core Light Nuclear Core Reactor Light Antimatter Reactor Propulsion Combat Airjet Leg Aluminum Leg Hover Unit Combat Airjet Utility System Shield Device Terrain Scanner Processor Modified TNC Hackware System Shield Protection Improved Medium Armor Plating Weapon Proton Cannon Energy Gun Medium Laser Energy Cannon Proton Cannon Ballistic Gun Linked Autogun Ballistic Cannon Light Cannon Launcher Mini Grenade Launcher Special Weapon Remote Datajack Slashing Weapon Falx Special Melee Weapon Datajack Build | -11 -10 -10 -10 -9 -8 -8 -8 -8 -7 -7 -7 -7 -7 -7 -6 -6 -6 -6 -6 -5 -5 -5 -5 ------- Run | Scr Mat Min Exi Min Mat Gar Mat Gar Fac Gar Fac Low Low Dat Pro Fac Gar Fac Ext Fac Upp Upp War Slots Evolved 13 | 3 . 1 . . . 5 2 1 . 1 . . . . . . . . . . . . . Power 2 | . . . . . . 1 1 . . . . . . . . . . . . . . . . Propulsion 2 | 1 . . . . . 1 . . . . . . . . . . . . . . . . . Utility 6 | 1 . 1 . . . 2 1 1 . . . . . . . . . . . . . . . Weapon 3 | 1 . . . . . 1 . . . 1 . . . . . . . . . . . . . Parts Attached 68 | 5 7 2 1 4 . 9 5 6 . 4 . 1 3 2 . 1 1 7 8 . . . 2 Power 15 | 1 2 . . . . 2 3 . . . . 1 . 2 . . 1 2 . . . . 1 Engine 6 | 1 . . . . . 2 3 . . . . . . . . . . . . . . . . Core 4 | . 2 . . . . . . . . . . 1 . . . . . . . . . . 1 Reactor 5 | . . . . . . . . . . . . . . 2 . . 1 2 . . . . . Propulsion 7 | 2 2 . . 2 . 1 . . . . . . . . . . . . . . . . . Treads . | . . . . . . . . . . . . . . . . . . . . . . . . Leg 2 | 2 . . . . . . . . . . . . . . . . . . . . . . . Wheel . | . . . . . . . . . . . . . . . . . . . . . . . . Hover 5 | . 2 . . 2 . 1 . . . . . . . . . . . . . . . . . Flight . | . . . . . . . . . . . . . . . . . . . . . . . . Utility 22 | . 2 2 1 2 . 2 2 2 . 1 . . . . . 1 . 1 6 . . . . Device 11 | . 2 2 . 2 . . . . . . . . . . . . . . 5 . . . . Storage . | . . . . . . . . . . . . . . . . . . . . . . . . Processor 2 | . . . 1 . . . . . . . . . . . . . . . 1 . . . . Hackware 8 | . . . . . . 1 2 2 . 1 . . . . . 1 . 1 . . . . . Protection 1 | . . . . . . 1 . . . . . . . . . . . . . . . . . Artifact . | . . . . . . . . . . . . . . . . . . . . . . . . Weapon 24 | 2 1 . . . . 4 . 4 . 3 . . 3 . . . . 4 2 . . . 1 Energy Gun 2 | 2 . . . . . . . . . . . . . . . . . . . . . . . Energy Cannon 7 | . . . . . . 2 . . . 3 . . . . . . . 1 1 . . . . Ballistic Gun 1 | . . . . . . . . . . . . . . . . . . 1 . . . . . Ballistic Cannon 2 | . 1 . . . . . . . . . . . . . . . . . . . . . 1 Launcher 1 | . . . . . . 1 . . . . . . . . . . . . . . . . . Special Weapon 4 | . . . . . . . . . . . . . 2 . . . . 1 1 . . . . Impact Weapon . | . . . . . . . . . . . . . . . . . . . . . . . . Slashing Weapon 5 | . . . . . . 1 . 2 . . . . 1 . . . . 1 . . . . . Piercing Weapon . | . . . . . . . . . . . . . . . . . . . . . . . . Special Melee Weapon 2 | . . . . . . . . 2 . . . . . . . . . . . . . . . Unidentified Prototypes 3 | . . . . 1 . . . . . . . . . . . . . 1 . . 1 . . Parts Lost 16 | . . . . . . . . . . . . . . . . 1 . 11 . . . 1 3 Power 3 | . . . . . . . . . . . . . . . . . . 1 . . . 1 1 Propulsion . | . . . . . . . . . . . . . . . . . . . . . . . . Utility 9 | . . . . . . . . . . . . . . . . 1 . 7 . . . . 1 Weapon 4 | . . . . . . . . . . . . . . . . . . 3 . . . . 1 Highest Loss Streak 6 | . . . . . . . . . . . . . . . . 1 . 6 . . . 1 3 Average Slot Usage (%) 92 | . 77 100 100 100 100 83 99 99 100 100 100 100 100 100 100 99 100 91 77 88 88 84 85 Engine 6 | . 6 . . . . 2 20 19 18 17 17 13 11 9 . . . . . . . . . Core 3 | . 7 13 12 12 12 7 . . . . . 3 5 5 5 5 2 . . . . . 2 Reactor 6 | . . . . . . . . . . . . . . 1 11 11 13 15 17 17 17 13 10 Hover 18 | . 14 27 25 25 25 19 20 19 18 17 17 17 17 17 17 17 17 17 17 17 17 17 17 Device 13 | . 6 30 33 25 25 17 13 9 6 5 5 5 5 5 5 5 5 2 17 29 29 29 28 Processor 3 | . . . 4 12 12 8 6 6 6 3 . . . . . . . . 1 5 5 5 5 Hackware 15 | . . . . . . 1 9 24 31 32 35 35 35 35 35 34 35 35 3 . . . . Energy Gun 2 | . 14 13 12 12 12 6 . . . . . . . . . . . . . . . . . Energy Cannon 9 | . . . . . . 3 13 12 12 14 17 17 17 17 17 17 17 9 7 11 11 11 10 Ballistic Cannon 2 | . 13 13 12 12 12 7 . . . . . . . . . . . . . . . . 2 Special Weapon 1 | . . . . . . . . . . . . . . . . . . 1 4 5 5 5 5 Slashing Weapon 2 | . . . . . . 1 6 5 6 5 5 5 4 5 5 5 5 3 . . . . . Naked Turns . | . . . . . . . . . . . . . . . . . . . . . . . . Heaviest Build 75 | 6 12 13 13 12 12 48 58 51 50 58 58 63 63 75 75 75 75 73 66 64 64 64 69 Greatest Support 81 | 20 27 27 27 59 59 81 81 81 81 81 81 81 81 81 81 81 81 81 81 81 81 81 81 Greatest Overweight (x) 3 | 1 . . . . . . . . . . . . . . . . . 3 . . . . . Average Overweight (x) . | . . . . . . . . . . . . . . . . . . . . . . . . Largest Inventory Capacity 4 | 4 4 4 4 4 4 4 4 4 4 4 4 4 4 4 4 4 4 4 4 4 4 4 4 Average Capacity 3 | 3 4 4 4 4 4 4 4 4 4 4 4 4 4 4 4 4 4 4 4 4 4 4 4 Most Carried 4 | 3 3 4 4 4 3 4 4 4 4 4 4 4 4 4 3 4 4 4 3 1 2 1 2 Average Carried 2 | . . 2 3 3 3 2 2 3 3 3 3 3 3 3 3 3 3 3 1 1 1 1 1 Final Capacity 4 | 4 4 4 4 4 4 4 4 4 4 4 4 4 4 4 4 4 4 4 4 4 4 4 4 Final Carried 4 | . 1 3 3 3 3 2 3 3 4 3 3 3 4 3 3 3 4 2 1 1 1 1 2 Class Distribution -------------------- 41% | Hacker-Scout 34% | Scavenger-Scout 12% | Commander-Scout 5% | Scavenger-Mutant 4% | Mutant Dominant Class ---------------- Mutant | -10/Materials Scavenger-Mutant | -10/Mines Scavenger-Scout | -10/Exiles Scavenger-Scout | -9/Mines Scavenger-Scout | -8/Materials Scavenger-Scout | -8/Garrison Scavenger-Scout | -8/Materials Hacker-Scout | -8/Garrison Hacker-Scout | -7/Factory Hacker-Scout | -7/Garrison Hacker-Scout | -7/Factory Hacker-Scout | -7/Lower Caves Hacker-Scout | -7/Lower Caves Hacker-Scout | -7/Data Miner Hacker-Scout | -6/Proximity Caves Hacker-Scout | -6/Factory Hacker-Scout | -6/Garrison Hacker-Scout | -6/Factory Scavenger-Scout | -6/Extension Commander-Scout | -5/Factory Commander-Scout | -5/Upper Caves Commander-Scout | -5/Upper Caves Scavenger-Scout | -5/Warlord Resources | -11 -10 -10 -10 -9 -8 -8 -8 -8 -7 -7 -7 -7 -7 -7 -6 -6 -6 -6 -6 -5 -5 -5 -5 ----------- Run | Scr Mat Min Exi Min Mat Gar Mat Gar Fac Gar Fac Low Low Dat Pro Fac Gar Fac Ext Fac Upp Upp War Matter Collected 2011 | 199 253 128 . 118 . 396 60 20 40 . 40 28 88 5 25 10 10 100 447 . 44 . . Remotely . | . . . . . . . . . . . . . . . . . . . . . . . . Salvage Created 9192 | . 349 195 . 69 . 599 1096 1098 118 684 215 461 323 308 643 450 679 775 344 . 319 122 345 Parts 474 | . 30 14 . . . 39 55 62 9 34 8 13 23 17 25 17 35 32 32 . 13 . 16 Haulers Intercepted . | . . . . . . . . . . . . . . . . . . . . . . . . Recyclers Shooed 2 | . . . . . . . 1 . . . . . . . . . . 1 . . . . . Parts Field Recycled . | . . . . . . . . . . . . . . . . . . . . . . . . Retrieved Matter . | . . . . . . . . . . . . . . . . . . . . . . . . Parts Self-Destructed 47 | . . . . . . . . . . . . 9 11 . 6 . . . . . 17 4 . Prevented 33 | . . . . . . . . . . . . 2 12 . 19 . . . . . . . . Kills | -11 -10 -10 -10 -9 -8 -8 -8 -8 -7 -7 -7 -7 -7 -7 -6 -6 -6 -6 -6 -5 -5 -5 -5 ------- Run | Scr Mat Min Exi Min Mat Gar Mat Gar Fac Gar Fac Low Low Dat Pro Fac Gar Fac Ext Fac Upp Upp War Combat Hostiles Destroyed 212 | . 12 8 . 7 . 22 17 29 3 13 2 11 12 4 15 5 16 13 6 . 4 3 10 Melee 3 | . . . . . . . . . . 1 . 1 . . . . . 1 . . . . . Guns 24 | . 5 6 . 5 . 2 . . . . . . . . . . . 5 1 . . . . Cannons 142 | . 7 2 . 2 . 10 15 24 2 7 . 10 9 . 12 4 11 6 5 . 4 3 9 AOE 11 | . . . . . . 9 . 2 . . . . . . . . . . . . . . . Classes Destroyed 17 | . 4 . . 1 . 3 3 . . 1 . 1 . . 1 2 1 . . . . . . Worker 3 | . 1 . . . . . . . . . . . . . . . . 2 . . . . . Builder 1 | . . . . . . . . . . . . . . . . 1 . . . . . . . Recycler 3 | . . . . . . . 3 . . . . . . . . . . . . . . . . Carrier 1 | . . . . . . . . . . . . . . . . 1 . . . . . . . Operator 4 | . . . . . . . 3 . . . . . . . . 1 . . . . . . . Watcher 9 | . 3 . . . . . 2 . 1 . 1 . . . . . . . 2 . . . . Swarmer 48 | . 3 2 . . . 5 3 8 . . . 7 . . 11 . 7 1 . . . 1 . Grunt 93 | . 9 6 . . . 10 9 17 2 5 . 1 6 . 2 4 7 10 2 . 2 1 . Brawler 5 | . . . . . . 2 1 . . 1 . . 1 . . . . . . . . . . Duelist 8 | . . . . . . 1 1 . . . . . 3 . 1 . . . 1 . . 1 . Sentry 20 | . . . . . . 5 2 2 1 5 1 1 1 . . . . 1 1 . . . . Specialist 1 | . . . . . . . . . . . . . . . . . 1 . . . . . . Hunter 7 | . . . . . . . 1 2 . 1 . . 1 . . 1 . . 1 . . . . Programmer 5 | . . . . . . . . . . 1 1 1 . . . . . . . . 2 . . Behemoth 3 | . . . . . . . . . . . . . . . 1 . 1 . 1 . . . . Enhanced Grunt 4 | . . . . . . . . . . . . . . 4 . . . . . . . . . Tracker 1 | . . . . . . . . . . . . . . . . . . 1 . . . . . Combat Programmer 1 | . . . . . . . . . . . . . . . . . . 1 . . . . . Assembled 7 | . . . . 7 . . . . . . . . . . . . . . . . . . . Thug 2 | . . . . . . . . . . . . . . . . . . . . . . . 2 Savage 1 | . . . . . . . . . . . . . . . . . . . . . . . 1 Butcher 1 | . . . . . . . . . . . . . . . . . . . . . . . 1 Bouncer 2 | . . . . . . . . . . . . . . . . . . . . . . . 2 Guerrilla 1 | . . . . . . . . . . . . . . . . . . . 1 . . . . Marauder 2 | . . . . . . . . . . . . . . . . . . . . . . . 2 Mutant 3 | . . . . . . . . . . . . 1 . . . . . . . . . . 2 Best Kill Streak 14 | . 4 3 . 2 . 8 8 14 4 8 1 6 6 4 7 5 12 4 2 . 2 2 6 Combat Bots Only 14 | . 3 3 . 2 . 8 5 14 3 8 1 6 6 4 7 4 12 3 2 . 2 2 6 Max Kills in Single Turn 3 | . 2 1 . 1 . 3 2 2 1 1 1 1 2 1 1 1 2 1 1 . 1 1 1 Gunslinging . | . . . . . . . . . . . . . . . . . . . . . . . . Exploded 3 | . . . . . . 3 . 2 . . . . . . . . . . . . . . . Melee 1 | . . . . . . . . . . 1 . 1 . . . . . 1 . . . . . Uniques/NPCs Destroyed . | . . . . . . . . . . . . . . . . . . . . . . . . Combat | -11 -10 -10 -10 -9 -8 -8 -8 -8 -7 -7 -7 -7 -7 -7 -6 -6 -6 -6 -6 -5 -5 -5 -5 -------- Run | Scr Mat Min Exi Min Mat Gar Mat Gar Fac Gar Fac Low Low Dat Pro Fac Gar Fac Ext Fac Upp Upp War Damage Taken 7841 | . 123 254 . 104 . 269 154 226 38 285 81 329 251 191 391 90 306 2169 564 . 85 274 1657 Core 6232 | . 94 199 . 86 . 211 120 181 28 216 63 259 196 162 328 69 247 1721 445 . 69 211 1327 Absorbed by Shields 14 | . . . . . . . . . . . . . . . . . 9 . 5 . . . . Redirected to Core 4904 | . 86 169 . 65 . 180 94 140 25 179 52 199 183 107 205 69 207 1327 342 . 47 200 1028 Core Remaining (%) 84 | 100 . . . 90 . . . 100 . . . . . . 96 . . . 34 . . . . Volleys Fired 518 | . 33 27 . 17 . 43 34 40 7 22 11 18 19 8 22 11 21 43 79 . 7 12 44 Largest 3 | . 2 2 . 2 . 3 2 2 2 3 3 3 3 3 3 3 3 3 2 . 2 2 3 Hottest 228 | . 85 85 . 85 . 150 150 150 150 225 225 225 225 225 225 225 225 225 180 . 180 180 228 Shots Fired 1077 | . 66 54 . 34 . 88 68 80 14 46 33 51 49 25 67 33 63 76 90 . 13 24 103 Gun 123 | . 33 27 . 17 . 31 . . . . . . . . . . . 12 3 . . . . Cannon 888 | . 33 27 . 17 . 40 68 80 14 46 33 51 45 25 67 33 63 58 48 . 13 24 103 Launcher 17 | . . . . . . 17 . . . . . . . . . . . . . . . . . Special 49 | . . . . . . . . . . . . . 4 . . . . 6 39 . . . . Kinetic 150 | . 33 27 . 17 . 34 . . . . . . . . . . . 12 3 . . . 24 Thermal 300 | . 33 27 . 17 . 31 . . . . . . . . . . . 28 48 . 13 24 79 Explosive 17 | . . . . . . 17 . . . . . . . . . . . . . . . . . Electromagnetic 561 | . . . . . . 6 68 80 14 46 33 51 45 25 67 33 63 30 . . . . . Robot Hit Streak 51 | . 18 17 . 33 . 11 13 19 6 24 16 11 21 25 22 31 36 51 31 . 9 7 27 Robot Miss Streak 5 | . 2 1 . 2 . 3 5 1 1 1 2 5 1 1 3 1 1 2 2 . 1 1 1 Penetration Max . | . . . . . . . . . . . . . . . . . . . . . . . . Secondary Targets . | . . . . . . . . . . . . . . . . . . . . . . . . Shots Hit Robots 826 | . 49 43 . 25 . 49 47 60 10 43 27 32 39 25 46 22 47 78 74 . 8 19 83 Core Hits 314 | . 22 16 . 16 . 34 25 28 4 12 5 13 14 10 14 11 20 29 11 . 4 4 22 Critical Hits 20 | . 2 1 . 1 . . 3 . . . . . 1 . 2 1 1 1 . . . . 7 Critical Kills 6 | . . . . 1 . . 1 . . . . . . . . 1 . . . . . . 3 Critical Parts Destroyed 9 | . 2 1 . . . . 1 . . . . . 1 . 1 . 1 1 . . . . 1 Melee Attacks 88 | . . . . . . 1 6 19 . 4 4 4 5 1 . 4 . 40 . . . . . Impact . | . . . . . . . . . . . . . . . . . . . . . . . . Slashing 73 | . . . . . . 1 6 4 . 4 4 4 5 1 . 4 . 40 . . . . . Piercing . | . . . . . . . . . . . . . . . . . . . . . . . . Sneak Attacks 15 | . . . . . . . 1 12 . . . . . 1 . . . 1 . . . . . Combat Hostiles . | . . . . . . . . . . . . . . . . . . . . . . . . Follow-up Attacks . | . . . . . . . . . . . . . . . . . . . . . . . . Damage Inflicted 23799 | . 763 612 . 391 . 1579 1997 1476 407 1298 334 973 1034 670 1267 948 1399 2603 1742 . 363 753 3190 Guns 1645 | . 335 277 . 199 . 325 . . . . . . . . . . . 394 115 . . . . Cannons 19457 | . 428 335 . 192 . 495 1625 1422 407 1183 334 793 1034 473 1204 807 1399 1393 1627 . 363 753 3190 Explosions 1285 | . . . . . . 759 153 54 . . . . . 67 63 141 . 48 . . . . . Melee 1412 | . . . . . . . 219 . . 115 . 180 . 130 . . . 768 . . . . . Ramming . | . . . . . . . . . . . . . . . . . . . . . . . . Kinetic 2509 | . 428 335 . 192 . 357 . . . . . . . . . . . 394 115 . . . 688 Thermal 7932 | . 335 277 . 199 . 325 153 54 . . . . . 67 63 141 . 1073 1627 . 363 753 2502 Explosive 759 | . . . . . . 759 . . . . . . . . . . . . . . . . . Electromagnetic 11187 | . . . . . . 138 1625 1422 407 1183 334 793 1034 473 1204 807 1399 368 . . . . . Impact . | . . . . . . . . . . . . . . . . . . . . . . . . Slashing 1412 | . . . . . . . 219 . . 115 . 180 . 130 . . . 768 . . . . . Piercing . | . . . . . . . . . . . . . . . . . . . . . . . . Highest Corruption 20 | . . . . . . . . . . 1 3 5 5 5 5 . . 20 20 . 1 1 1 Average Corruption 9 | . . . . . . . . . . 1 2 4 5 5 5 . . 12 20 . 1 1 1 Corruption Purged . | . . . . . . . . . . . . . . . . . . . . . . . . Effects 179 | . . . . . . . . . . . 6 14 18 5 13 . . 29 89 . 4 1 . Message Errors 33 | . . . . . . . . . . . 2 3 5 2 2 . . 3 15 . 1 . . Matter Fused 23 | . . . . . . . . . . . 1 3 4 1 1 . . 5 8 . . . . Heat Flow Errors 11 | . . . . . . . . . . . . 2 1 . 2 . . 1 5 . . . . Energy Discharges 10 | . . . . . . . . . . . . . . . 2 . . 2 5 . 1 . . Data Loss (minor) 25 | . . . . . . . . . . . 1 3 5 . 3 . . 2 9 . 1 1 . Data Loss (major) 3 | . . . . . . . . . . . . . . . . . . . 3 . . . . Misfires 7 | . . . . . . . . . . . . . . 1 1 . . 3 2 . . . . Alerts 1 | . . . . . . . . . . . . . . . . . . . 1 . . . . Misdirections 24 | . . . . . . . . . . . . . . . . . . 3 21 . . . . Targeting Errors 36 | . . . . . . . . . . . 2 2 3 1 2 . . 8 18 . . . . Weapon Failures 6 | . . . . . . . . . . . . 1 . . . . . 2 2 . 1 . . Overload Shots . | . . . . . . . . . . . . . . . . . . . . . . . . Overflow Damage 886 | . . 4 . . . 22 184 18 53 24 . 84 31 70 25 13 23 132 31 . . 89 83 Projectiles 544 | . . 4 . . . 22 70 18 53 24 . 42 31 . 25 5 23 24 31 . . 89 83 Explosions 18 | . . . . . . . 10 . . . . . . . . 8 . . . . . . . Melee 324 | . . . . . . . 104 . . . . 42 . 70 . . . 108 . . . . . Knockbacks 24 | . 5 7 . 6 . . . . . . . . . . . . . . . . . . 6 Impact . | . . . . . . . . . . . . . . . . . . . . . . . . Kinetic 20 | . 3 6 . 5 . . . . . . . . . . . . . . . . . . 6 Secondary 4 | . 2 1 . 1 . . . . . . . . . . . . . . . . . . . Self-Inflicted Damage . | . . . . . . . . . . . . . . . . . . . . . . . . Shots . | . . . . . . . . . . . . . . . . . . . . . . . . Rammed . | . . . . . . . . . . . . . . . . . . . . . . . . Targets Rammed . | . . . . . . . . . . . . . . . . . . . . . . . . Kicked . | . . . . . . . . . . . . . . . . . . . . . . . . Crushed . | . . . . . . . . . . . . . . . . . . . . . . . . Highest Temperature 531 | . 360 7 . 261 . . 22 21 . 14 . 67 222 50 292 . . 108 173 . . . 531 Average Temperature 76 | . 108 3 . 154 . . 9 7 . 8 . 31 73 37 107 . . 37 88 . . . 267 Received Heat Transfer 1721 | . 48 126 . . . 108 99 144 . 144 . 56 150 42 90 54 81 126 174 . 18 171 90 Effects 5 | . 1 . . . . . . . . . . . . . . . . . . . . . 4 Shutdowns 1 | . . . . . . . . . . . . . . . . . . . . . . . 1 Interference 3 | . . . . . . . . . . . . . . . . . . . . . . . 3 Short Circuit 1 | . 1 . . . . . . . . . . . . . . . . . . . . . . Siege Activations . | . . . . . . . . . . . . . . . . . . . . . . . . Robots Corrupted 32 | . . . . . . 1 2 3 1 5 2 . 3 4 3 2 5 1 . . . . . Combat Hostiles 31 | . . . . . . 1 2 3 1 5 2 . 3 4 3 1 5 1 . . . . . Parts Fried 94 | . . . . . . 1 12 8 4 8 8 8 7 6 12 5 10 5 . . . . . Impact Corruptions . | . . . . . . . . . . . . . . . . . . . . . . . . Robots Melted 1 | . . . . . . . . . . . . . . . . . . . . . . . 1 Combat Hostiles 1 | . . . . . . . . . . . . . . . . . . . . . . . 1 Parts Melted 11 | . . 1 . . . 3 . 1 . . . . . . . . . 1 . . . 2 3 Heat Transferred 8164 | . 999 814 . 592 . 962 200 50 . . . . . 50 50 100 . 648 873 . 211 521 2094 Parts Sabotaged . | . . . . . . . . . . . . . . . . . . . . . . . . Parts Stolen . | . . . . . . . . . . . . . . . . . . . . . . . . Parts Stripped . | . . . . . . . . . . . . . . . . . . . . . . . . Power Chain Reactions 7 | . . . . . . . 2 1 . . . . . 1 1 1 . 1 . . . . . Missiles Intercepted . | . . . . . . . . . . . . . . . . . . . . . . . . Alert | -11 -10 -10 -10 -9 -8 -8 -8 -8 -7 -7 -7 -7 -7 -7 -6 -6 -6 -6 -6 -5 -5 -5 -5 ------- Run | Scr Mat Min Exi Min Mat Gar Mat Gar Fac Gar Fac Low Low Dat Pro Fac Gar Fac Ext Fac Upp Upp War Peak Influence 1354 | . 252 222 . 19 . 1051 825 1354 702 728 444 . . . . 551 745 508 680 287 . . . Average Influence 461 | . 81 142 . 3 . 751 615 1009 646 606 387 . . . . 475 552 400 320 287 . . . Maximum Alert Level 4 | . 1 1 . . . 3 3 4 3 3 2 . . . . 2 3 2 2 1 . . . Low Security (%) 29 | 100 93 97 . 100 100 5 . . . . . . . . . 2 . . 44 . . . . Level 1 10 | . 6 2 . . . 6 . . . . 60 . . . . 2 24 35 4 100 . . . Level 2 37 | . . . . . . 21 81 11 98 75 39 . . . . 94 31 64 50 . . . . Level 3 19 | . . . . . . 66 18 55 1 24 . . . . . . 43 . . . . . . Level 4 3 | . . . . . . . . 32 . . . . . . . . . . . . . . . Level 5 . | . . . . . . . . . . . . . . . . . . . . . . . . High Security . | . . . . . . . . . . . . . . . . . . . . . . . . Max Security . | . . . . . . . . . . . . . . . . . . . . . . . . Squads Dispatched 17 | . 1 . . . . . 3 . 1 . . . . . . 3 . 6 3 . . . . Investigation 7 | . 1 . . . . . . . 1 . . . . . . 2 . . 3 . . . . Extermination . | . . . . . . . . . . . . . . . . . . . . . . . . Reinforcement 4 | . . . . . . . 3 . . . . . . . . . . 1 . . . . . Assault 3 | . . . . . . . . . . . . . . . . 1 . 2 . . . . . Garrison 1 | . . . . . . . . . . . . . . . . . . 1 . . . . . Intercept 2 | . . . . . . . . . . . . . . . . . . 2 . . . . . Construction Impeded . | . . . . . . . . . . . . . . . . . . . . . . . . Haulers Reinforced . | . . . . . . . . . . . . . . . . . . . . . . . . Stealth | -11 -10 -10 -10 -9 -8 -8 -8 -8 -7 -7 -7 -7 -7 -7 -6 -6 -6 -6 -6 -5 -5 -5 -5 --------- Run | Scr Mat Min Exi Min Mat Gar Mat Gar Fac Gar Fac Low Low Dat Pro Fac Gar Fac Ext Fac Upp Upp War Distress Signals 2 | . . . . . . . 1 . . . . . . . . . . 1 . . . . . Communications Jammed . | . . . . . . . . . . . . . . . . . . . . . . . . Distress Signals . | . . . . . . . . . . . . . . . . . . . . . . . . Times Spotted 283 | . 15 10 . 11 . 28 21 26 4 13 4 11 13 4 15 7 18 29 29 . 5 6 14 Peak Tracking Total 7 | . 3 3 . 2 . 7 4 5 3 4 2 3 7 3 4 3 4 6 7 . 3 3 5 Tactical Retreats 10 | . . 1 . . . . . 1 . 1 . 1 . . 1 . 1 . 2 . . 1 1 Traps | -11 -10 -10 -10 -9 -8 -8 -8 -8 -7 -7 -7 -7 -7 -7 -6 -6 -6 -6 -6 -5 -5 -5 -5 ------- Run | Scr Mat Min Exi Min Mat Gar Mat Gar Fac Gar Fac Low Low Dat Pro Fac Gar Fac Ext Fac Upp Upp War Traps Triggered 25 | . 1 . . . . 9 . 6 . 2 . . . . . . 2 . 5 . . . . Indirectly . | . . . . . . . . . . . . . . . . . . . . . . . . Trap Hack Attempts . | . . . . . . . . . . . . . . . . . . . . . . . . Triggered . | . . . . . . . . . . . . . . . . . . . . . . . . Disarmed . | . . . . . . . . . . . . . . . . . . . . . . . . Reprogrammed 1 | . 1 . . . . . . . . . . . . . . . . . . . . . . Reused . | . . . . . . . . . . . . . . . . . . . . . . . . Traps Extracted . | . . . . . . . . . . . . . . . . . . . . . . . . Installed . | . . . . . . . . . . . . . . . . . . . . . . . . Triggered 2 | . . . . . . . . . . . . . . . . . . . . . . 2 . Machines | -11 -10 -10 -10 -9 -8 -8 -8 -8 -7 -7 -7 -7 -7 -7 -6 -6 -6 -6 -6 -5 -5 -5 -5 ---------- Run | Scr Mat Min Exi Min Mat Gar Mat Gar Fac Gar Fac Low Low Dat Pro Fac Gar Fac Ext Fac Upp Upp War Machines Disabled 32 | . 1 . . . . 9 . 6 . . . 1 . . . 2 . 1 11 . 1 . . Max in Single Turn 2 | . 1 . . . . 2 . 1 . . . 1 . . . 1 . 1 1 . 1 . . Garrison Access 3 | . . . . . . . . . . . . . . . . 1 . 2 . . . . . Garrison Relay 8 | . . . . . . 4 . 4 . . . . . . . . . . . . . . . Phase Generator 1 | . . . . . . 1 . . . . . . . . . . . . . . . . . Machines Sabotaged . | . . . . . . . . . . . . . . . . . . . . . . . . Garrisons Compromised . | . . . . . . . . . . . . . . . . . . . . . . . . Overloaded Fab Kills . | . . . . . . . . . . . . . . . . . . . . . . . . Fab Network Shutdowns . | . . . . . . . . . . . . . . . . . . . . . . . . Hacking | -11 -10 -10 -10 -9 -8 -8 -8 -8 -7 -7 -7 -7 -7 -7 -6 -6 -6 -6 -6 -5 -5 -5 -5 --------- Run | Scr Mat Min Exi Min Mat Gar Mat Gar Fac Gar Fac Low Low Dat Pro Fac Gar Fac Ext Fac Upp Upp War Machines Accessed 32 | . 2 1 1 1 1 . 4 . 2 . 2 . 1 3 . 3 . 6 4 . 1 . . Terminals 19 | . 2 1 . 1 . . 3 . 1 . 2 . . . . 1 . 4 4 . . . . Fabricators 1 | . . . . . . . . . . . . . . . . 1 . . . . . . . Repair Stations . | . . . . . . . . . . . . . . . . . . . . . . . . Recycling Units . | . . . . . . . . . . . . . . . . . . . . . . . . Scanalyzers . | . . . . . . . . . . . . . . . . . . . . . . . . Garrison Access 6 | . . . . . 1 . 1 . 1 . . . . . . 1 . 2 . . . . . Total Hacks 96 | . 3 1 1 2 2 . 10 . 3 . 8 . 1 23 . 8 . 22 11 . 1 . . Successful 64 | . 2 1 1 2 2 . 6 . 3 . 4 . 1 23 . 3 . 11 4 . 1 . . Failed 32 | . 1 . . . . . 4 . . . 4 . . . . 5 . 11 7 . . . . Catastrophic 7 | . 1 . . . . . 1 . . . . . . . . 1 . 2 2 . . . . Database Lockouts . | . . . . . . . . . . . . . . . . . . . . . . . . Manual 35 | . . . 1 . . . 6 . 1 . 5 . . . . 3 . 19 . . . . . Terminals 58 | . 3 1 . 2 . . 8 . 2 . 8 . . . . 3 . 20 11 . . . . Fabricators 4 | . . . . . . . . . . . . . . . . 4 . . . . . . . Repair Stations . | . . . . . . . . . . . . . . . . . . . . . . . . Recycling Units . | . . . . . . . . . . . . . . . . . . . . . . . . Scanalyzers . | . . . . . . . . . . . . . . . . . . . . . . . . Garrison Access 8 | . . . . . 2 . 2 . 1 . . . . . . 1 . 2 . . . . . Terminal Hacks 41 | . 2 1 1 2 . . . . 1 . 2 . 1 23 . . . 3 4 . 1 . . Record 7 | . . . . . . . . . . . . . . 6 . . . . . . 1 . . Part Schematic 8 | . . . . . . . . . . . . . . 8 . . . . . . . . . Robot Schematic 6 | . . . . . . . . . . . . . . 6 . . . . . . . . . Prototype ID Bank 4 | . . . . . . . . . . . 1 . . 3 . . . . . . . . . Open Door 2 | . . . . . . . . . . . . . 1 . . . . . 1 . . . . Branch Access Points 4 | . 1 . . . . . . . . . 1 . . . . . . 1 1 . . . . Emergency Access Points 1 | . . . . . . . . . 1 . . . . . . . . . . . . . . Unreport Threat 2 | . . . . . . . . . . . . . . . . . . . 2 . . . . Reprogram Traps 1 | . 1 . . . . . . . . . . . . . . . . . . . . . . Dispatch Records 2 | . . 1 . 1 . . . . . . . . . . . . . . . . . . . Recall Extermination 1 | . . . . . . . . . . . . . . . . . . 1 . . . . . Recall Assault 1 | . . . . . . . . . . . . . . . . . . 1 . . . . . Zone Layout 1 | . . . . 1 . . . . . . . . . . . . . . . . . . . EX-Prototype ID Bank 1 | . . . 1 . . . . . . . . . . . . . . . . . . . . Fabricator Hacks 2 | . . . . . . . . . . . . . . . . 2 . . . . . . . Load Schematic 1 | . . . . . . . . . . . . . . . . 1 . . . . . . . Build 1 | . . . . . . . . . . . . . . . . 1 . . . . . . . Repair Station Hacks . | . . . . . . . . . . . . . . . . . . . . . . . . Recycling Unit Hacks . | . . . . . . . . . . . . . . . . . . . . . . . . Scanalyzer . | . . . . . . . . . . . . . . . . . . . . . . . . Garrison Access Hacks 7 | . . . . . 2 . 2 . 1 . . . . . . 1 . 1 . . . . . Unlock Access 4 | . . . . . 1 . 1 . 1 . . . . . . 1 . . . . . . . Seal Access 1 | . . . . . . . . . . . . . . . . . . 1 . . . . . Coupler Status 2 | . . . . . 1 . 1 . . . . . . . . . . . . . . . . Unauthorized Hacks 35 | . . . . . . . 9 . 2 . 6 . . . . 3 . 15 . . . . . Terminals 13 | . . . . . . . 4 . 1 . 2 . . . . . . 6 . . . . . Assimilate 4 | . . . . . . . 1 . . . . . . . . . . 3 . . . . . Botnet 9 | . . . . . . . 3 . 1 . 2 . . . . . . 3 . . . . . Fabricators . | . . . . . . . . . . . . . . . . . . . . . . . . Repair Stations . | . . . . . . . . . . . . . . . . . . . . . . . . Recycling Units . | . . . . . . . . . . . . . . . . . . . . . . . . Scanalyzers . | . . . . . . . . . . . . . . . . . . . . . . . . Garrison Access 1 | . . . . . . . . . . . . . . . . . . 1 . . . . . Reprogram 1 | . . . . . . . . . . . . . . . . . . 1 . . . . . Data Cores Recovered 3 | . . . . . . . 2 . . . . . . . . . . . 1 . . . . Used 3 | . . . . . . . 2 . . . . . . . . . . . 1 . . . . Hacking Detections 14 | . 1 . . . . . 3 . . . 1 . . . . 2 . 3 4 . . . . Full Trace Events 4 | . . . . . . . . . . . . . . . . 2 . . 2 . . . . Feedback Events 1 | . . . . . . . . . . . . . . . . 1 . . . . . . . Hackware Fried 1 | . . . . . . . . . . . . . . . . 1 . . . . . . . Feedback Blocked . | . . . . . . . . . . . . . . . . . . . . . . . . Robot Schematics Acquired 6 | . . . . . . . . . . . . . . 6 . . . . . . . . . Robots Built . | . . . . . . . . . . . . . . . . . . . . . . . . Matter 285 | . . . . . . . . . . . . . . . . 285 . . . . . . . Time 152 | . . . . . . . . . . . . . . . . 152 . . . . . . . Total Robot Build Rating . | . . . . . . . . . . . . . . . . . . . . . . . . Part Schematics Acquired 8 | . . . . . . . . . . . . . . 8 . . . . . . . . . Parts Built . | . . . . . . . . . . . . . . . . . . . . . . . . Matter . | . . . . . . . . . . . . . . . . . . . . . . . . Time . | . . . . . . . . . . . . . . . . . . . . . . . . Total Part Build Rating . | . . . . . . . . . . . . . . . . . . . . . . . . Parts Repaired . | . . . . . . . . . . . . . . . . . . . . . . . . Time . | . . . . . . . . . . . . . . . . . . . . . . . . Parts Recycled . | . . . . . . . . . . . . . . . . . . . . . . . . Recycled Matter . | . . . . . . . . . . . . . . . . . . . . . . . . Retrieved Matter . | . . . . . . . . . . . . . . . . . . . . . . . . Retrieved Components . | . . . . . . . . . . . . . . . . . . . . . . . . Parts Scanalyzed . | . . . . . . . . . . . . . . . . . . . . . . . . Part Schematics Acquired . | . . . . . . . . . . . . . . . . . . . . . . . . Parts Damaged . | . . . . . . . . . . . . . . . . . . . . . . . . Bothacking | -11 -10 -10 -10 -9 -8 -8 -8 -8 -7 -7 -7 -7 -7 -7 -6 -6 -6 -6 -6 -5 -5 -5 -5 ------------ Run | Scr Mat Min Exi Min Mat Gar Mat Gar Fac Gar Fac Low Low Dat Pro Fac Gar Fac Ext Fac Upp Upp War Used RIF Installer 4 | . . . . . . 1 . 1 . 1 . . . . . . 1 . . . . . . Coupler Efficiency 1 | . . . . . . . . . . . . . . . . . 1 . . . . . . Robot Detection 1 | . . . . . . . . 1 . . . . . . . . . . . . . . . Patrol Navigation 1 | . . . . . . . . . . 1 . . . . . . . . . . . . . Robots Hacked 11 | . . . . . . . . . . . . . 1 . . . . 5 5 . . . . Non-combat . | . . . . . . . . . . . . . . . . . . . . . . . . Combat 11 | . . . . . . . . . . . . . 1 . . . . 5 5 . . . . Robot Hacks Applied 11 | . . . . . . . . . . . . . 1 . . . . 5 5 . . . . disable_weapons 1 | . . . . . . . . . . . . . . . . . . . 1 . . . . formatsys_high 10 | . . . . . . . . . . . . . 1 . . . . 5 4 . . . . Relay Couplers Released 14 | . . . . . . 5 . 7 . . . . . . . . . 2 . . . . . Machine Destruction 14 | . . . . . . 5 . 7 . . . . . . . . . 2 . . . . . Attached 4 | . . . . . . 1 . 2 . . . . . . . . . 1 . . . . . Robots Rewired 20 | . . . . . . . . 4 . . . . 2 . . . . . 14 . . . . Allies Hacked 2 | . . . . . . . . . . . . . . . . . . 2 . . . . . Hacks Repelled . | . . . . . . . . . . . . . . . . . . . . . . . . Allies | -11 -10 -10 -10 -9 -8 -8 -8 -8 -7 -7 -7 -7 -7 -7 -6 -6 -6 -6 -6 -5 -5 -5 -5 -------- Run | Scr Mat Min Exi Min Mat Gar Mat Gar Fac Gar Fac Low Low Dat Pro Fac Gar Fac Ext Fac Upp Upp War Total Allies 47 | . . . . 5 . . 1 . . . . . 3 . . . . 9 29 . . . . Largest Group 23 | . . . . 5 4 4 1 . . . . . 2 2 . . . 5 23 23 22 20 18 Highest-Rated Group 785 | . . . . 83 71 71 10 . . . . . 49 48 . . . 163 785 785 629 572 506 Highest-Rated Ally 156 | . . . . 31 31 31 10 . . . . . 49 32 . . . 47 156 156 37 37 37 Total Orders 11 | . . . . 1 1 1 1 . 1 . . . 1 1 . . . . 3 . 1 . . STAY 1 | . . . . . . . 1 . . . . . . . . . . . . . . . . GUARD 9 | . . . . 1 1 1 . . . . . . 1 1 . . . . 3 . 1 . . EXPLORE 1 | . . . . . . . . . 1 . . . . . . . . . . . . . . Ally Attacks 250 | . . . . 11 . 34 . . . . . . . 4 . . . 41 108 . 20 30 2 Total Damage 4604 | . . . . 147 . 482 . . . . . . . 85 . . . 702 2197 . 357 598 36 Kills 46 | . . . . 4 . 6 . . . . . . . . . . . 2 23 . 5 6 . Allies Corrupted 13 | . . . . . . . . . . . . . . . . . . . . . . . 13 Allies Melted . | . . . . . . . . . . . . . . . . . . . . . . . . Intel | -11 -10 -10 -10 -9 -8 -8 -8 -8 -7 -7 -7 -7 -7 -7 -6 -6 -6 -6 -6 -5 -5 -5 -5 ------- Run | Scr Mat Min Exi Min Mat Gar Mat Gar Fac Gar Fac Low Low Dat Pro Fac Gar Fac Ext Fac Upp Upp War Robot Analysis Total 115 | . . . . . . . . . . . . . . 115 . . . . . . . . . Derelict Logs Recovered 7 | . . 2 . 1 . . . . . . . 1 . . 2 . . . . . 1 . . Drone Launches . | . . . . . . . . . . . . . . . . . . . . . . . . Drone Recoveries . | . . . . . . . . . . . . . . . . . . . . . . . . Exploration | -11 -10 -10 -10 -9 -8 -8 -8 -8 -7 -7 -7 -7 -7 -7 -6 -6 -6 -6 -6 -5 -5 -5 -5 ------------- Run | Scr Mat Min Exi Min Mat Gar Mat Gar Fac Gar Fac Low Low Dat Pro Fac Gar Fac Ext Fac Upp Upp War Turns Passed 9876 | 52 569 485 152 513 17 787 618 727 186 436 219 479 395 118 330 217 551 720 1126 78 508 293 300 Spaces Moved 8095 | 46 463 608 264 377 15 779 344 678 171 303 172 516 380 99 302 216 294 471 817 34 375 238 133 Core 33 | 23 . . . . . . . . . . . . . . . . . 10 . . . . . Treads . | . . . . . . . . . . . . . . . . . . . . . . . . Legs 206 | 23 183 . . . . . . . . . . . . . . . . . . . . . . Wheels . | . . . . . . . . . . . . . . . . . . . . . . . . Hover 7856 | . 280 608 264 377 15 779 344 678 171 303 172 516 380 99 302 216 294 461 817 34 375 238 133 Flight . | . . . . . . . . . . . . . . . . . . . . . . . . Fastest Speed 50 | 50 56 56 56 56 76 72 72 72 72 72 72 72 72 72 72 72 72 72 72 72 72 72 72 Average Speed 71 | 92 81 56 56 66 76 74 72 72 72 72 72 72 72 72 72 72 72 74 72 72 72 72 72 Slowest Speed 200 | 120 120 56 56 80 76 76 72 72 72 72 72 72 72 72 72 72 72 200 72 72 72 72 72 Overloaded Moves . | . . . . . . . . . . . . . . . . . . . . . . . . Propulsion Burnouts . | . . . . . . . . . . . . . . . . . . . . . . . . Robots Hopped 3 | . . . . . . . . . . . . . . . . . . . . . . . 3 Cave-ins Triggered 3 | . . . . . . . . . . . . . . . . . . 3 . . . . . Exploration Rate (%) 47 | 4 77 85 62 65 3 96 31 87 18 50 6 71 57 69 48 8 63 12 93 2 64 45 29 Regions Visited 23 Branch Regions 11 Pre-discovered Areas 27 | . . . . . . . . . . . . . . 27 . . . . . . . . . Known Exits Taken 9 | . 1 . . . 1 . 1 . 1 . 1 . . . 1 1 . 1 . 1 . . . Unknown Exits Taken 10 | 1 . 1 1 1 . . . . . . . 1 1 1 . . . . 1 . 1 1 . Scrap Searched 8 | . . 1 . 1 . . . . . . . . 6 . . . . . . . . . . Spaces Dug 38 | . . . . . . . 2 . . . 4 . . . . 4 . 22 . . . . 6 Terrain Destroyed 207 | . . . . . . 104 12 2 . . 4 . . 5 5 12 . 27 6 . 5 6 19 Melee 32 | . . . . . . . 2 . . . 4 . . . . 4 . 22 . . . . . Projectile 38 | . . . . . . . . . . . . . . . . . . 2 6 . 5 6 19 AOE 137 | . . . . . . 104 10 2 . . . . . 5 5 8 . 3 . . . . . Actions | -11 -10 -10 -10 -9 -8 -8 -8 -8 -7 -7 -7 -7 -7 -7 -6 -6 -6 -6 -6 -5 -5 -5 -5 --------- Run | Scr Mat Min Exi Min Mat Gar Mat Gar Fac Gar Fac Low Low Dat Pro Fac Gar Fac Ext Fac Upp Upp War Total 11106 | 55 591 698 268 608 20 902 635 817 219 469 234 575 456 127 364 244 586 703 1281 87 597 332 238 Wait 2000 | . 72 54 2 189 5 36 231 45 40 115 46 32 22 4 29 6 244 107 331 54 210 83 43 Move 8068 | 45 462 607 263 376 15 778 344 677 171 302 171 515 379 98 301 216 293 467 816 33 374 237 128 Hop 2 | . . . . . . . . . . . . . . . . . . . . . . . 2 Pick Up 70 | 5 8 4 1 6 . 9 6 4 1 3 1 1 1 3 . 1 3 3 6 . 1 . 3 Fast Attach . | . . . . . . . . . . . . . . . . . . . . . . . . Attach 70 | 5 7 2 1 4 . 10 5 6 . 4 . 1 3 2 . 1 1 7 8 . 1 . 2 Detach 11 | . . . . . . 1 . 4 . . . . 3 . . . . 2 1 . . . . Swap . | . . . . . . . . . . . . . . . . . . . . . . . . Drop 36 | . 5 1 1 6 . 4 3 3 . 3 1 1 . 4 . . 2 1 1 . . . . Fire 518 | . 33 27 . 17 . 43 34 40 7 22 11 18 19 8 22 11 21 43 79 . 7 12 44 Melee 88 | . . . . . . 1 6 19 . 4 4 4 5 1 . 4 . 40 . . . . . Ram . | . . . . . . . . . . . . . . . . . . . . . . . . Kick . | . . . . . . . . . . . . . . . . . . . . . . . . Crush . | . . . . . . . . . . . . . . . . . . . . . . . . Escape Stasis 63 | . . . . . . 6 . 10 . 5 . . . . . . 22 3 17 . . . . Rewire 1 | . . . . . . . . . . . . . . . . . . . 1 . . . . Trap . | . . . . . . . . . . . . . . . . . . . . . . . . Miscellaneous 179 | . 4 3 . 10 . 14 6 9 . 11 . 3 24 7 12 5 . 30 21 . 4 . 16 Route ------- -11/Scrapyard -10/Materials (discovered 4 exits: [*Mat x2] / *Min x2) -10/Mines (discovered 3 exits: [*Mat x2] / *Exi) -10/Exiles -9/Mines -8/Materials -8/Garrison (discovered 3 exits: *Mat x3) -8/Materials -8/Garrison (discovered 3 exits: *Fac x3) -7/Factory (discovered 2 exits: *Fac / Gar) -7/Garrison (discovered 2 exits: *Fac x2) -7/Factory (discovered 2 exits: *Low x2) -7/Lower Caves -7/Lower Caves (discovered 2 exits: *Fac / *Dat) -7/Data Miner -6/Proximity Caves -6/Factory -6/Garrison (discovered 3 exits: *Fac x3) -6/Factory (discovered 4 exits: *Low x2 / *Ext x2) -6/Extension (discovered 3 exits: [*Fac x2] / *Cet) -5/Factory -5/Upper Caves -5/Upper Caves -5/Warlord (discovered 1 exit: [Pro]) History --------- Turn | Location | Event 4 | -11/Scrapyard | Upgraded with Propulsion slot (x1) 4 | -11/Scrapyard | Upgraded with Utility slot (x1) 4 | -11/Scrapyard | Upgraded with Weapon slot (x1) 20 | -11/Scrapyard | Discovered new exit (range 14) 53 | -11/Scrapyard | Entered Materials 67 | -10/Materials | Identified exit to Mines 170 | -10/Materials | Discovered new exit (range 12) 314 | -10/Materials | Build established: Mutant 544 | -10/Materials | Reached level 2 564 | -10/Materials | Discovered new exit (range 14) 622 | -10/Materials | Entered Mines 761 | -10/Mines | Discovered new exit (range 12) 769 | -10/Mines | Build established: Scavenger-Mutant 951 | -10/Mines | Learned Materials emergency access door positions 996 | -10/Mines | Upgraded with Utility slot (x1) 1004 | -10/Mines | Discovered new exit (range 7) 1011 | -10/Mines | Reached level 3 1095 | -10/Mines | Deemed a non-threat by the Exiles lab entrance 1095 | -10/Mines | Discovered new exit (range 5) 1107 | -10/Mines | Entered Exiles 1122 | -10/Exiles | Met 8R-AWN 1132 | -10/Exiles | Met EX-HEX 1152 | -10/Exiles | Met EX-DEC 1176 | -10/Exiles | Met EX-BIN 1184 | -10/Exiles | Aligned with FarCom system 1184 | -10/Exiles | Given EX-Vault access code 1198 | -10/Exiles | Opened EX-Vault 1203 | -10/Exiles | Found Modified TNC 1218 | -10/Exiles | Warned to stay clear of 0b10 Research branches 1253 | -10/Exiles | Discovered new exit (range 14) 1259 | -10/Exiles | Left Exiles lab with Modified TNC 1259 | -10/Exiles | Entered Mines 1283 | -9/Mines | Assembled infested the area 1285 | -9/Mines | Found a damaged Exp. Sensor Array with a note attached 1288 | -9/Mines | Found Prototype Device 1289 | -9/Mines | Identified Exp. Sensor Array 1316 | -9/Mines | Met a Derelict bent on vengeance 1332 | -9/Mines | Build established: Scavenger-Scout 1530 | -9/Mines | Learned Materials non-interactive machine intel 1673 | -9/Mines | Assisted by bots powering up and referring to "LRC-V3" 1723 | -9/Mines | Discovered new exit (range 14) 1772 | -9/Mines | Entered Materials 1772 | -8/Materials | Accompanied by 4 allies 1774 | -8/Materials | Loaded intel: 37 non-interactive machine locations 1774 | -8/Materials | Reached level 4 1774 | -8/Materials | Reached level 5 1774 | -8/Materials | Reached level 6 1777 | -8/Materials | Led the pair of lost Derelicts to an unsafe place 1789 | -8/Materials | Identified exit to Garrison 1789 | -8/Materials | Entered Garrison 1789 | -8/Garrison | Accompanied by 4 allies 1791 | -8/Garrison | Reached level 7 1791 | -8/Garrison | Upgraded with Utility slot (x2) 1791 | -8/Garrison | Upgraded with Weapon slot (x1) 1811 | -8/Garrison | Triggered checkpoint 1819 | -8/Garrison | Garrison Relay disabled 1830 | -8/Garrison | Phase Generator disabled 1868 | -8/Garrison | Triggered checkpoint 1874 | -8/Garrison | Reached level 8 1884 | -8/Garrison | Triggered checkpoint 1887 | -8/Garrison | Triggered checkpoint 1894 | -8/Garrison | Triggered checkpoint 1919 | -8/Garrison | Destroyed 8 combat bots 2050 | -8/Garrison | Reached level 9 2071 | -8/Garrison | Triggered checkpoint 2087 | -8/Garrison | Garrison Relay disabled 2123 | -8/Garrison | Discovered new exit (range 14) 2281 | -8/Garrison | Discovered new exit (range 14) 2297 | -8/Garrison | Installed Relay Interface Framework 2332 | -8/Garrison | Garrison Relay disabled 2332 | -8/Garrison | Reached level 10 2371 | -8/Garrison | Upgraded with Power slot (x1) 2371 | -8/Garrison | Upgraded with Propulsion slot (x1) 2432 | -8/Garrison | Spotted B-75 Beast 2468 | -8/Garrison | Discovered new exit (range 8) 2485 | -8/Garrison | Triggered checkpoint 2503 | -8/Garrison | Garrison Relay disabled 2576 | -8/Garrison | Entered Materials 2599 | -8/Materials | Upgraded with Power slot (x1) 3003 | -8/Materials | Reached level 11 3020 | -8/Materials | Upgraded with Utility slot (x1) 3194 | -8/Materials | Identified exit to Garrison 3194 | -8/Materials | Entered Garrison 3198 | -8/Garrison | Expanded RIF knowledge: Robot Detection 3246 | -8/Garrison | Triggered checkpoint 3250 | -8/Garrison | Reached level 12 3288 | -8/Garrison | Triggered checkpoint 3329 | -8/Garrison | Destroyed 14 combat bots 3342 | -8/Garrison | Discovered new exit (range 12) 3378 | -8/Garrison | Triggered checkpoint 3379 | -8/Garrison | Build established: Hacker-Scout 3428 | -8/Garrison | Garrison Relay disabled 3438 | -8/Garrison | Triggered checkpoint 3464 | -8/Garrison | Triggered checkpoint 3496 | -8/Garrison | Discovered new exit (range 13) 3541 | -8/Garrison | Triggered checkpoint 3584 | -8/Garrison | Garrison Relay disabled 3654 | -8/Garrison | Discovered new exit (range 13) 3683 | -8/Garrison | Garrison Relay disabled 3694 | -8/Garrison | Triggered checkpoint 3700 | -8/Garrison | Reached level 13 3703 | -8/Garrison | Upgraded with Utility slot (x1) 3762 | -8/Garrison | Triggered checkpoint 3773 | -8/Garrison | Garrison Relay disabled 3921 | -8/Garrison | Entered Factory 3921 | -7/Factory | Accompanied by 4 allies 3923 | -7/Factory | Reached level 14 4045 | -7/Factory | Discovered new exit (range 9) 4106 | -7/Factory | Identified exit to Garrison 4107 | -7/Factory | Entered Garrison 4240 | -7/Garrison | Triggered checkpoint 4243 | -7/Garrison | Reached level 15 4268 | -7/Garrison | Triggered checkpoint 4286 | -7/Garrison | Destroyed 8 combat bots 4303 | -7/Garrison | Discovered new exit (range 14) 4357 | -7/Garrison | Upgraded with Weapon slot (x1) 4520 | -7/Garrison | Discovered new exit (range 15) 4534 | -7/Garrison | Expanded RIF knowledge: Patrol Navigation 4543 | -7/Garrison | Entered Factory 4618 | -7/Factory | Identified exit to Lower Caves 4762 | -7/Factory | Entered Lower Caves 4831 | -7/Lower Caves | Attracted the attention of an 0b10 checkpoint 4859 | -7/Lower Caves | Core integrity fell below 50% 4889 | -7/Lower Caves | Attacked by a delusional Derelict stockpiling parts 5157 | -7/Lower Caves | Reached level 16 5168 | -7/Lower Caves | Encountered a Warlord checkpoint 5232 | -7/Lower Caves | Discovered new exit (range 14) 5241 | -7/Lower Caves | Entered another Lower Caves area 5262 | -7/Lower Caves | Attracted the attention of an 0b10 outpost 5357 | -7/Lower Caves | Discovered new exit (range 7) 5538 | -7/Lower Caves | Attracted the attention of an 0b10 checkpoint 5600 | -7/Lower Caves | Discovered new exit (range 9) 5636 | -7/Lower Caves | Entered Data Miner 5636 | -7/Data Miner | Accompanied by 2 allies 5636 | -7/Data Miner | Discovered new exit (range 6) 5650 | -7/Data Miner | Met Data Miner 5663 | -7/Data Miner | Learned location of Section 7 (-2) 5663 | -7/Data Miner | Acquired the access code to Warlord's prototype stash 5674 | -7/Data Miner | Received God Mode back door access code from Data Miner 5686 | -7/Data Miner | Interfaced with the Data Conduit 5754 | -7/Data Miner | Entered Proximity Caves 5756 | -6/Proximity Caves | Reached level 17 5836 | -6/Proximity Caves | Destroyed 7 combat bots 5862 | -6/Proximity Caves | Spotted B-75 Beast 5874 | -6/Proximity Caves | Reached level 18 5874 | -6/Proximity Caves | Destroyed B-75 Beast 6045 | -6/Proximity Caves | Identified exit to Factory 6046 | -6/Proximity Caves | Learned location of 1 exit from Proximity Caves 6084 | -6/Proximity Caves | Entered Factory 6085 | -6/Factory | Loaded intel: 294 machine locations 6096 | -6/Factory | Reached level 19 6212 | -6/Factory | Hacking Suite fried by hacking feedback 6301 | -6/Factory | Identified exit to Garrison 6301 | -6/Factory | Entered Garrison 6302 | -6/Garrison | Loaded intel: 17 machine locations 6531 | -6/Garrison | Spotted B-75 Beast 6540 | -6/Garrison | Destroyed B-75 Beast 6558 | -6/Garrison | Triggered checkpoint 6601 | -6/Garrison | Discovered new exit (range 12) 6633 | -6/Garrison | Destroyed 12 combat bots 6720 | -6/Garrison | Triggered checkpoint 6736 | -6/Garrison | Discovered new exit (range 11) 6834 | -6/Garrison | Discovered new exit (range 15) 6849 | -6/Garrison | Expanded RIF knowledge: Coupler Efficiency 6852 | -6/Garrison | Entered Factory 6853 | -6/Factory | Loaded intel: 323 machine locations 6918 | -6/Factory | Discovered new exit (range 14) 6984 | -6/Factory | Identified exit to Lower Caves 6984 | -6/Factory | Identified exit to Extension 7111 | -6/Factory | Intercept squad dispatched 7128 | -6/Factory | Spotted Tracker 7142 | -6/Factory | Garrison activated, responded to threat 7143 | -6/Factory | Reached level 20 7143 | -6/Factory | Destroyed Tracker 7148 | -6/Factory | Spotted Combat Programmer 7179 | -6/Factory | Core integrity fell below 50% 7197 | -6/Factory | System corruption reached 10% 7202 | -6/Factory | First assault squad dispatched 7207 | -6/Factory | Destroyed Combat Programmer 7223 | -6/Factory | Lost 5 parts (1p1u3w) 7268 | -6/Factory | Core integrity fell below 20% 7522 | -6/Factory | Crushed by falling debris 7539 | -6/Factory | Crushed by falling debris 7542 | -6/Factory | Crushed by falling debris 7572 | -6/Factory | Entered Extension 7573 | -6/Extension | Loaded intel: 37 machine locations 7573 | -6/Extension | Lost 6 parts (6u) 7620 | -6/Extension | Build established: Scavenger-Scout 7671 | -6/Extension | Rescued a captive Derelict 7682 | -6/Extension | Rescued a captive Derelict 7728 | -6/Extension | Rescued a captive Derelict 7729 | -6/Extension | Rescued a captive Derelict 8037 | -6/Extension | Spotted B-75 Beast 8049 | -6/Extension | Destroyed B-75 Beast 8056 | -6/Extension | Spotted B-75 Beast 8076 | -6/Extension | Allies destroyed B-75 Beast 8117 | -6/Extension | Rescued a captive Derelict 8137 | -6/Extension | Discovered new exit (range 3) 8206 | -6/Extension | Discovered new exit (range 16) 8206 | -6/Extension | Discovered new exit (range 16) 8314 | -6/Extension | Rescued a captive Derelict 8314 | -6/Extension | Rescued a captive Derelict 8322 | -6/Extension | Rescued a captive Derelict 8449 | -6/Extension | Reached level 21 8457 | -6/Extension | Rescued A7 8498 | -6/Extension | Rescued a captive Derelict 8503 | -6/Extension | Rescued a captive Derelict 8508 | -6/Extension | Identified exit to Cetus 8645 | -6/Extension | Build established: Commander-Scout 8698 | -6/Extension | Entered Factory 8698 | -5/Factory | Accompanied by 23 allies 8699 | -5/Factory | Identified exit to Upper Caves 8699 | -5/Factory | Core integrity fell below 50% 8700 | -5/Factory | Loaded intel: 293 machine locations 8776 | -5/Factory | Entered Upper Caves 8776 | -5/Upper Caves | Accompanied by 22 allies 8797 | -5/Upper Caves | Found Alien Artifact 8798 | -5/Upper Caves | Identified Dimensional Node Initializer 8798 | -5/Upper Caves | Initialized slip node 8988 | -5/Upper Caves | Reached level 22 9159 | -5/Upper Caves | Discovered new exit (range 13) 9161 | -5/Upper Caves | Learned Factory security intel 9284 | -5/Upper Caves | Entered another Upper Caves area 9284 | -5/Upper Caves | Accompanied by 20 allies 9413 | -5/Upper Caves | Attracted the attention of an 0b10 checkpoint 9483 | -5/Upper Caves | Discovered new exit (range 17) 9577 | -5/Upper Caves | Entered Warlord 9577 | -5/Warlord | Accompanied by 18 allies 9591 | -5/Warlord | Discovered new exit (range 20) 9642 | -5/Warlord | System corruption cleaned by Quarantine Array 9646 | -5/Warlord | RIF detected upon attempting to enter Warlord's base 9646 | -5/Warlord | Attacked by Warlord forces 9663 | -5/Warlord | Spotted 0E-U77(B) 9663 | -5/Warlord | Spotted SE-GJW(B) 9681 | -5/Warlord | Destroyed 0E-U77(B) 9703 | -5/Warlord | Destroyed SE-GJW(B) 9717 | -5/Warlord | Core integrity fell below 20% 9877 | -5/Warlord | Destroyed by 34-NVZ(g) with Particle Gun Last Messages --------------- 09836_ Destroyed Stasis Canceller. 09836_ XZ-NHZ(M) destroyed. 09843_ Destroyed Particle Gun. 09843_ 0N-1E7(g) suffers critical hit. 09843_ 0N-1E7(g) destroyed. 09844_ Critical hit. 09844_ Lgt. Antimatter Reactor destroyed. 09846_ DF-JNV(l) suffers critical hit. 09846_ DF-JNV(l) destroyed. 09850_ Neutron Cannon destroyed. 09856_ GQ-D9W(Y) destroyed. 09859_ 8F-AA2(g) knocked back. 09862_ Destroyed Hvy. Beamcaster. 09862_ 8F-AA2(g) knocked back. 09865_ 34-NVZ(g) knocked back. 09868_ Imp. Particle Charger destroyed. 09871_ 34-NVZ(g) knocked back. 09874_ Slug penetrates 8F-AA2(g). 09877_ 8F-AA2(g) suffers critical hit. 09877_ 8F-AA2(g) destroyed. Map ----- +----------------------------------------------------+ | ?????????????????????????????????????????????????? | | ?????????????????????????????????????????????????? | | ????????????????????????????????????????????????? | | ?????????????????????????????????????? ? ??###? | | ???????????????????????????????????????######## | | ????????????????????????""???# ? ?##?## ## | | ???????????????????# "### ? | | ?????????????????###" "### | | ??????????????? ####" "### | | ????????????? #####"""""""### ## ## ##### | | ??????????? ########################## ###### | | ??????????## ################# # ###### | | ?????????### ################ + # | | ?????????### ################# # # | | ???????#?### ################# # # | | ???????##### ################# # # | | ????????#### ################# + + | | ??????###### ################# # # | | ????? ##### ################# # # | | ????? ###### ## ###### # ####+# | | ???? ###### ##% ############### # | | ????? ####; Y];! # # =# | | ???? #####; ;*%! # + = | | ???? ###### ; ; # || # =# | | ???? ###### ### ; # ##""% " | | ????? ###### ##; %! @# ||| # # | | ????"""###### ### *% ; # #% | | ???? X##### #####;###%;+#;;###"##+##### # | | ???# ######+#########g %! | | ???? # + g = | | ????? + "#"### ! | | ???? # ###### ^ % | | ???? # ############+###;;;## # | | ???? ?# ########### # # | | ????? # ########### + " | | ?????? # ########### # ###" # | | ????? ? ########### # # | | ?????? #?######+############ # # | | ?????? #?###### ## ## # #### # | | ????????####### ## ## # #### # | | ??????? ? # ## # #####+## | | ???????? / ############ ## | | ?????????? ? # ############ ## """" | | ?????????? ? ? # ############ ## """" | | ???????????? ? # ############ # """" | | ????????????? + ########### ## | | ???????????????### ###?######## ## | | ??????????????????#?################## ## | | ???????????????????????#??#????## ?# ## | | ??????????????????????????? ??????? ?? ######## | +----------------------------------------------------+ Best States ------------- Heat Dissipation 121 Energy Generation 53 Energy Capacity 1015 Matter Stores 300 Matter Capacity 300 Sight Range 16 Robot Scan Range 10 Terrain Scan Range 20 Terrain Scan Density 1210 Armor Coverage 225 Resistance: KI 40 Resistance: TH 40 Resistance: EX 20 Resistance: EM 45 Resistance: I 20 Resistance: S 20 Resistance: P 20 Evasion (%) 53 Particle Charging 20 Offensive Hacking 20 Defensive Hacking 30 Item Schematics ----------------- Lgt. Regenerative Plating | -7/Data Miner | Free Combat Drone Bay | -7/Data Miner | Free Triangulator | -7/Data Miner | Free Exp. Flexi-carbon Leg | -7/Data Miner | Free Cmb. Gravmag System | -7/Data Miner | Free Mni. Smartbomb Launcher | -7/Data Miner | Free Exp. ECM Suite | -7/Data Miner | Free Plasma Sword | -7/Data Miner | Free Robot Schematics ------------------ I-47 Archangel | -7/Data Miner | Free I-36 Angel | -7/Data Miner | Free H-66 Slayer | -7/Data Miner | Free L-41 Fighter | -7/Data Miner | Free G-50 Soldier | -7/Data Miner | Free S-27 Virus | -7/Data Miner | Free Fabricated ------------ Nothing Alien Tech Used ----------------- Dimensional Node Initializer Achievements -------------- Leap Before You Look Preemptive Strike Challenges ------------ None RPGLIKE | -11 -10 -10 -10 -9 -8 -8 -8 -8 -7 -7 -7 -7 -7 -7 -6 -6 -6 -6 -6 -5 -5 -5 -5 --------- Run | Scr Mat Min Exi Min Mat Gar Mat Gar Fac Gar Fac Low Low Dat Pro Fac Gar Fac Ext Fac Upp Upp War Levels Raised 21 | . 1 1 . . 3 4 1 2 1 1 . 1 . . 2 1 . 1 1 . 1 . . XP Earned 36437 | 4000 1620 1500 350 649 4279 5637 1925 2311 1816 1420 228 801 604 733 2041 1415 899 643 1224 734 855 583 170 XP Spent 35335 | 4000 600 2350 . . . 9150 2500 2800 . 3470 . 1600 . . 2880 . . . 2880 . . . 3105 Upgrades 105 | 7 3 17 . . . 18 2 5 . 10 . 16 . . 6 . . . 12 . . . 9 Power Slot 2 | . . . . . . 1 1 . . . . . . . . . . . . . . . . Propulsion Slot 2 | 1 . . . . . 1 . . . . . . . . . . . . . . . . . Utility Slot 6 | 1 . 1 . . . 2 1 1 . . . . . . . . . . . . . . . Weapon Slot 3 | 1 . . . . . 1 . . . 1 . . . . . . . . . . . . . Core Integrity 37 | . . . . . . . . . . . . 16 . . . . . . 12 . . . 9 Heat Dissipation 16 | . . 6 . . . . . 4 . 4 . . . . 2 . . . . . . . . Energy Storage 5 | . . . . . . . . . . 5 . . . . . . . . . . . . . Mass Support 3 | . 3 . . . . . . . . . . . . . . . . . . . . . . Inventory Capacity 4 | 4 . . . . . . . . . . . . . . . . . . . . . . . Sensor Range 5 | . . 5 . . . . . . . . . . . . . . . . . . . . . Terrain Scan Density 10 | . . 5 . . . 5 . . . . . . . . . . . . . . . . . Ranged Accuracy 4 | . . . . . . . . . . . . . . . 4 . . . . . . . . KI Resistance % 4 | . . . . . . 4 . . . . . . . . . . . . . . . . . TH Resistance % 4 | . . . . . . 4 . . . . . . . . . . . . . . . . . Protomatter Created 4059 | . 139 80 . 31 . 288 279 500 127 292 . 100 445 185 142 114 326 367 151 . . 44 449 Integrity Restored 3823 | . 65 67 . 189 . 269 120 181 . 233 . 66 509 162 273 105 . 666 465 . 75 . 378 Core 3777 | . 65 67 . 189 . 269 120 181 . 187 . 66 509 162 273 105 . 666 465 . 75 . 378 Parts 46 | . . . . . . . . . . 46 . . . . . . . . . . . . . Protomatter Decayed 3405 | . 117 65 . 73 . 125 238 412 146 213 . 78 234 85 51 85 326 298 287 . . 135 437 Game ------ Seed PotentialRestorationMace Manual? 0 Play Time 01:34:44 Cumulative 85.5 hours Start 2019.12.31 @ 11:02:56 End 2019.12.31 @ 12:35:12 Sessions 1 Manual Loads 0 Difficulty Adventurer Special Mode Winter2019/RPGLIKE Game No. 144 Rogue 78 Adventurer 66 Explorer 0 Win Type - Total 0 Types 0/0/0/0/0/0/0 Lore% 44 Gallery% 64 Achievement% 53 Wizard Run 0 Options --------- ASCII 0 Keyboard 0 Movement Mouse Keybinds 0 Fullscreen 1 Font 20/SmallcapsGlow Map View 66x50 Tactical HUD 1 Map Filters NONE Filters NONE Steam 1 RUN: 00ba7cf8-9148-4467-af06-b063e95089b3